Workbook

Sheet Cover
B2: 3GPP TSG-RAN WG4 Meeting #111 | J2: R4-2408978
B3: Fukuoka, Japan, 20 – 24 May, 2024
B5: Source: Huawei, HiSilicon
B6: Title: Simulation results summary for UE and SAN demodulation requirements for NTN enhancements
B7: Agenda: 7.16.8
B8: Document for: Information

Sheet Parameters
C2: Parameters for deriving performance requirements
C3: Ideal Span Threshold | D3: 2 | E3: dB
C4: Impairment Span Threshold | D4: 4 | E4: dB
B7: Notes | C7: 1. Call function DerivingPerfReq()
C8: 2. If the ruls does not apply, or fails, -100dB or less will be returned
D9: -100 | E9: Not enough input
D10: -101 | E10: Input should be pairs
D11: -102 | E11: Too large span for impairment
D12: -103 | E12: After removal iteration, not enough input

Sheet PDSCH
A1: PDSCH | C1: Apple | E1: Ericsson | G1: Huawei | I1: Nokia | K1: Qualcomm | M1: SPAN | O1: AVERAGE
C2: Ideal | D2: Impairment | E2: Ideal | F2: Impairment | G2: Ideal | H2: Impairment | I2: Ideal | J2: Impairment | K2: Ideal | L2: Impairment | M2: Ideal | N2: Impairment | O2: Ideal | P2: Impairment
A3: MCS4 | B3: 16 HARQ process | C3: 0.5 | D3: 2.5 | E3: -1.17 | F3: 0.83 | G3: 0.8 | H3: 3.3 | I3: 0.8 | J3: 3.5 | K3: 1.1 | L3: 3.6 | M3: =MAX(C3,E3,G3,I3,K3)-MIN(C3,E3,G3,I3,K3) -> 2.27 | N3: =MAX(D3,F3,H3,J3,L3)-MIN(D3,F3,H3,J3,L3) -> 2.77 | O3: =AVERAGE((C3,E3,G3,I3,K3)) -> 0.406 | P3: =AVERAGE((D3,F3,H3,J3,L3)) -> 2.746
A4: MCS13 | B4: 16 HARQ process | C4: 8.2 | D4: 10.2 | E4: 6.58 | F4: 8.58 | G4: 8.6 | H4: 11.1 | I4: 8.7 | J4: 11.4 | K4: 8 | L4: 10.5 | M4: =MAX(C4,E4,G4,I4,K4)-MIN(C4,E4,G4,I4,K4) -> 2.12 | N4: 2.82 | O4: =AVERAGE((C4,E4,G4,I4,K4)) -> 8.016 | P4: =AVERAGE((D4,F4,H4,J4,L4)) -> 10.356
A5: MCS4 | B5: 32 HARQ process | C5: 0.5 | D5: 2.5 | E5: -1.17 | F5: 0.83 | G5: 0.7 | H5: 3.2 | I5: 0.9 | J5: 3.6 | K5: 1.1 | L5: 3.6 | M5: 2.27 | N5: 2.77 | O5: =AVERAGE((C5,E5,G5,I5,K5)) -> 0.406 | P5: =AVERAGE((D5,F5,H5,J5,L5)) -> 2.746
A6: MCS4 | B6: 16 HARQ process (4 with feedback disabled) | C6: 1.3 | D6: 3.3 | E6: -0.1 | F6: 1.9 | G6: 1.4 | H6: 3.9 | I6: 0.8 | J6: 3.5 | K6: 1.65 | L6: 4.2 | M6: 1.75 | N6: 2.3 | O6: =AVERAGE((C6,E6,G6,I6,K6)) -> 1.01 | P6: =AVERAGE((D6,F6,H6,J6,L6)) -> 3.36

Sheet PDCCH
A1: PDCCH | C1: Apple | E1: Ericsson | G1: Huawei | I1: Nokia | K1: Qualcomm | M1: SPAN | O1: AVERAGE
C2: Ideal | D2: Impairment | E2: Ideal | F2: Impairment | G2: Ideal | H2: Impairment | I2: Ideal | J2: Impairment | K2: Ideal | L2: Impairment | M2: Ideal | N2: Impairment | O2: Ideal | P2: Impairment
A3: AL8 | B3: 42 bit | C3: 2.5 | D3: 4.5 | E3: 1.24 | G3: 3 | H3: 5.5 | K3: 0.55 | L3: 3.1 | M3: =MAX(C3,E3,G3,I3,K3)-MIN(C3,E3,G3,I3,K3) -> 2.45 | N3: =MAX(D3,F3,H3,J3,L3)-MIN(D3,F3,H3,J3,L3) -> 2.4 | O3: =AVERAGE(C3,E3,G3,I3,K3) -> 1.8225 | P3: =AVERAGE(D3,F3,H3,J3,L3) -> 4.366666667
A4: AL16 | B4: 56bit | C4: 0.4 | D4: 2.4 | E4: -0.29 | G4: 1.7 | H4: 4.2 | K4: -0.2 | L4: 2.3 | M4: =MAX(C4,E4,G4,I4,K4)-MIN(C4,E4,G4,I4,K4) -> 1.99 | N4: =MAX(D4,F4,H4,J4,L4)-MIN(D4,F4,H4,J4,L4) -> 1.9 | O4: =AVERAGE(C4,E4,G4,I4,K4) -> 0.4025 | P4: =AVERAGE(D4,F4,H4,J4,L4) -> 2.966666667

Sheet Above 10GHz bands - PUSCH
A1: Normal PUSCH with CP-OFDM | C1: 38.104 req | D1: 38.141 req | E1: CATT | G1: Ericsson | I1: Huawei | K1: Nokia | M1: Samsung | O1: SPAN | Q1: AVERAGE
E2: Ideal | F2: Impairment | G2: Ideal | H2: Impairment | I2: Ideal | J2: Impairment | K2: Ideal | L2: Impairment | M2: Ideal | N2: Impairment | O2: Ideal | P2: Impairment | Q2: Ideal | R2: Impairment
A3: MCS2 | B3: 1x1 | C3: =DerivingPerfReq(E3:N3) -> 0 | D3: =IF(C3>-100,C3+0.6,C3) -> 0.6 | E3: -2.6 | F3: -0.1 | G3: -2.9 | H3: -0.2 | I3: -2 | J3: 0.5 | M3: -2.3 | N3: -0.3 | O3: =MAX(E3,G3,I3,K3,M3)-MIN(E3,G3,I3,K3,M3) -> 0.9 | P3: =MAX(F3,H3,J3,L3,N3)-MIN(F3,H3,J3,L3,N3) -> 0.8 | Q3: =AVERAGE(E3,G3,I3,K3,M3) -> -2.45 | R3: =AVERAGE(F3,H3,J3,L3,N3) -> -0.025
A4: MCS2 | B4: 1x2 | C4: -3.4 | D4: -2.8 | E4: -6 | F4: -3.5 | G4: -6.3 | H4: -3.6 | I4: -5.5 | J4: -3 | M4: -5.7 | N4: -3.7 | O4: =MAX(E4,G4,I4,K4,M4)-MIN(E4,G4,I4,K4,M4) -> 0.8 | P4: =MAX(F4,H4,J4,L4,N4)-MIN(F4,H4,J4,L4,N4) -> 0.7 | Q4: =AVERAGE(E4,G4,I4,K4,M4) -> -5.875 | R4: =AVERAGE(F4,H4,J4,L4,N4) -> -3.45
A5: MCS12 | B5: 1x1 | C5: 8.9 | D5: 9.5 | E5: 6.4 | F5: 8.9 | G5: 6.2 | H5: 8.9 | I5: 6.7 | J5: 9.2 | M5: 6.6 | N5: 8.6 | O5: 0.5 | P5: 0.6 | Q5: 6.475 | R5: 8.9
A6: MCS12 | B6: 1x2 | C6: 5.5 | D6: 6.1 | E6: 3 | F6: 5.5 | G6: 2.8 | H6: 5.5 | I6: 3.4 | J6: 5.9 | M6: 3.2 | N6: 5.2 | O6: 0.6 | P6: 0.7 | Q6: 3.1 | R6: 5.525
A8: Normal PUSCH with DFT-s-OFDM | C8: 38.104 req | D8: 38.141 req | E8: CATT | G8: Ericsson | I8: Huawei | K8: Nokia | M8: Samsung | O8: SPAN | Q8: AVERAGE
E9: Ideal | F9: Impairment | G9: Ideal | H9: Impairment | I9: Ideal | J9: Impairment | K9: Ideal | L9: Impairment | M9: Ideal | N9: Impairment | O9: Ideal | P9: Impairment | Q9: Ideal | R9: Impairment
A10: MCS2 | B10: 1x1 | C10: =DerivingPerfReq(E10:N10) -> 0.1 | D10: =IF(C10>-100,C10+0.6,C10) -> 0.7 | E10: -2.5 | F10: 0 | G10: -2.7 | H10: 0 | I10: -1.8 | J10: 0.7 | M10: -2.3 | N10: -0.3 | O10: =MAX(E10,G10,I10,K10,M10)-MIN(E10,G10,I10,K10,M10) -> 0.9 | P10: =MAX(F10,H10,J10,L10,N10)-MIN(F10,H10,J10,L10,N10) -> 1 | Q10: =AVERAGE(E10,G10,I10,K10,M10) -> -2.325 | R10: =AVERAGE(F10,H10,J10,L10,N10) -> 0.1
A11: MCS2 | B11: 1x2 | C11: =DerivingPerfReq(E11:N11) -> -3.2 | D11: -2.6 | E11: -5.8 | F11: -3.3 | G11: -6.1 | H11: -3.4 | I11: -5.3 | J11: -2.8 | M11: -5.5 | N11: -3.5 | O11: =MAX(E11,G11,I11,K11,M11)-MIN(E11,G11,I11,K11,M11) -> 0.8 | P11: =MAX(F11,H11,J11,L11,N11)-MIN(F11,H11,J11,L11,N11) -> 0.7 | Q11: =AVERAGE(E11,G11,I11,K11,M11) -> -5.675 | R11: =AVERAGE(F11,H11,J11,L11,N11) -> -3.25
A13: PUSCH repetition Type A | C13: 38.104 req | D13: 38.141 req | E13: CATT | G13: Ericsson | I13: Huawei | K13: Nokia | M13: Samsung | O13: SPAN | Q13: AVERAGE
E14: Ideal | F14: Impairment | G14: Ideal | H14: Impairment | I14: Ideal | J14: Impairment | K14: Ideal | L14: Impairment | M14: Ideal | N14: Impairment | O14: Ideal | P14: Impairment | Q14: Ideal | R14: Impairment
A15: MCS2 | B15: 1x1 | C15: =DerivingPerfReq(E15:N15) -> -103 | D15: =IF(C15>-100,C15+0.6,C15) -> -103 | E15: -5.6 | F15: -3.1 | G15: -13 | H15: -10.3 | I15: -10.1 | J15: -7.6 | M15: -11.5 | N15: -9.5 | O15: =MAX(E15,G15,I15,K15,M15)-MIN(E15,G15,I15,K15,M15) -> 7.4 | P15: =MAX(F15,H15,J15,L15,N15)-MIN(F15,H15,J15,L15,N15) -> 7.2 | Q15: =AVERAGE(E15,G15,I15,K15,M15) -> -10.05 | R15: =AVERAGE(F15,H15,J15,L15,N15) -> -7.625
A16: MCS2 | B16: 1x2 | C16: =DerivingPerfReq(E16:N16) -> -103 | D16: -103 | E16: -8.7 | F16: -6.2 | G16: -16.5 | H16: -13.8 | I16: -14 | J16: -11.5 | M16: -14.7 | N16: -12.7 | O16: =MAX(E16,G16,I16,K16,M16)-MIN(E16,G16,I16,K16,M16) -> 7.8 | P16: =MAX(F16,H16,J16,L16,N16)-MIN(F16,H16,J16,L16,N16) -> 7.6 | Q16: =AVERAGE(E16,G16,I16,K16,M16) -> -13.475 | R16: =AVERAGE(F16,H16,J16,L16,N16) -> -11.05

Sheet Above 10GHz bands - PUCCH
A1: PUCCH format 0 | D1: 38.104 req | E1: 38.141 req | F1: CATT | H1: Ericsson | J1: Huawei | L1: Nokia | N1: Samsung | P1: SPAN | R1: AVERAGE
F2: Ideal | G2: Impairment | H2: Ideal | I2: Impairment | J2: Ideal | K2: Impairment | L2: Ideal | M2: Impairment | N2: Ideal | O2: Impairment | P2: Ideal | Q2: Impairment | R2: Ideal | S2: Impairment
A3: 1 symbol | B3: 1x1 | C3: 1% of ACK missed detection | D3: =DerivingPerfReq(F3:O3) -> -103 | E3: =IF(D3>-100,D3+0.6,D3) -> -103 | F3: 2.9 | G3: 5.4 | J3: 7.4 | K3: 9.9 | N3: 6.81 | O3: 8.81 | P3: =MAX(F3,H3,J3,L3,N3)-MIN(F3,H3,J3,L3,N3) -> 4.5 | Q3: =MAX(G3,I3,K3,M3,O3)-MIN(G3,I3,K3,M3,O3) -> 4.5 | R3: =AVERAGE(F3,H3,J3,L3,N3) -> 5.703333333 | S3: =AVERAGE(G3,I3,K3,M3,O3) -> 8.036666667
A4: 1 symbol | B4: 1x2 | C4: 1% of ACK missed detection | D4: =DerivingPerfReq(F4:O4) -> 3.8 | E4: 4.4 | F4: 0.7 | G4: 3.2 | J4: 1.7 | K4: 4.2 | N4: 1.85 | O4: 3.85 | P4: =MAX(F4,H4,J4,L4,N4)-MIN(F4,H4,J4,L4,N4) -> 1.15 | Q4: 1 | R4: =AVERAGE(F4,H4,J4,L4,N4) -> 1.416666667 | S4: 3.75
A5: 2 symbol | B5: 1x1 | C5: 1% of ACK missed detection | D5: =DerivingPerfReq(F5:O5) -> -103 | E5: -103 | F5: 0.7 | G5: 3.2 | H5: 2.2 | I5: 4.9 | J5: 4.8 | K5: 7.3 | N5: 4.39 | O5: 6.39 | P5: 4.1 | Q5: 4.1 | R5: 3.0225 | S5: 5.4475
A6: 2 symbol | B6: 1x2 | C6: 1% of ACK missed detection | D6: =DerivingPerfReq(F6:O6) -> 1.3 | E6: 1.9 | F6: -2 | G6: 0.5 | H6: -1.2 | I6: 1.5 | J6: -0.8 | K6: 1.7 | N6: -0.4 | O6: 1.6 | P6: 1.6 | Q6: 1.2 | R6: -1.1 | S6: 1.325
A8: PUCCH format 1 | D8: 38.104 req | E8: 38.141 req | F8: CATT | H8: Ericsson | J8: Huawei | L8: Nokia | N8: Samsung | P8: SPAN | R8: AVERAGE
F9: Ideal | G9: Impairment | H9: Ideal | I9: Impairment | J9: Ideal | K9: Impairment | L9: Ideal | M9: Impairment | N9: Ideal | O9: Impairment | P9: Ideal | Q9: Impairment | R9: Ideal | S9: Impairment
A10: 14 symbol | B10: 1x1 | C10: 0.1% of NACK to ACK | D10: =DerivingPerfReq(F10:O10) -> -0.2 | E10: =IF(D10>-100,D10+0.6,D10) -> 0.4 | F10: -3.2 | G10: -0.7 | H10: -4.8 | I10: -2.1 | J10: -1.9 | K10: 0.6 | N10: -2.59 | O10: -0.59 | P10: =MAX(F10,H10,J10,L10,N10)-MIN(F10,H10,J10,L10,N10) -> 2.9 | Q10: =MAX(G10,I10,K10,M10,O10)-MIN(G10,I10,K10,M10,O10) -> 2.7 | R10: =AVERAGE(F10,H10,J10,L10,N10) -> -3.1225 | S10: =AVERAGE(G10,I10,K10,M10,O10) -> -0.6975
A11: 14 symbol | B11: 1x1 | C11: 1% of ACK missed detection | D11: =DerivingPerfReq(F11:O11) -> -1.4 | E11: -0.8 | F11: -3.5 | G11: -1 | H11: -3.8 | I11: -1.1 | J11: -3.6 | K11: -1.1 | N11: -4.34 | O11: -2.34 | P11: =MAX(F11,H11,J11,L11,N11)-MIN(F11,H11,J11,L11,N11) -> 0.84 | Q11: =MAX(G11,I11,K11,M11,O11)-MIN(G11,I11,K11,M11,O11) -> 1.34 | R11: =AVERAGE(F11,H11,J11,L11,N11) -> -3.81 | S11: =AVERAGE(G11,I11,K11,M11,O11) -> -1.385
A12: 14 symbol | B12: 1x2 | C12: 0.1% of NACK to ACK | D12: =DerivingPerfReq(F12:O12) -> -5.3 | E12: -4.7 | F12: -7.2 | G12: -4.7 | H12: -9.2 | I12: -6.5 | J12: -7.3 | K12: -4.8 | N12: -7.26 | O12: -5.26 | P12: 2 | Q12: 1.8 | R12: -7.74 | S12: -5.315
A13: 14 symbol | B13: 1x2 | C13: 1% of ACK missed detection | D13: =DerivingPerfReq(F13:O13) -> -5.9 | E13: -5.3 | F13: -7.5 | G13: -5 | H13: -8.2 | I13: -5.5 | J13: -8.7 | K13: -6.2 | N13: -8.84 | O13: -6.84 | P13: 1.34 | Q13: 1.84 | R13: -8.31 | S13: -5.885
A15: PUCCH format 2 (ACK missed detection) | D15: 38.104 req | E15: 38.141 req | F15: CATT | H15: Ericsson | J15: Huawei | L15: Nokia | N15: Samsung | P15: SPAN | R15: AVERAGE
F16: Ideal | G16: Impairment | H16: Ideal | I16: Impairment | J16: Ideal | K16: Impairment | L16: Ideal | M16: Impairment | N16: Ideal | O16: Impairment | P16: Ideal | Q16: Impairment | R16: Ideal | S16: Impairment
A17: 1 symbol | B17: 1x1 | C17: 1% of ACK missed detection | D17: =DerivingPerfReq(F17:O17) -> 5 | E17: =IF(D17>-100,D17+0.6,D17) -> 5.6 | F17: 1.73 | G17: 4.23 | H17: 2.8 | I17: 5.5 | J17: 2.2 | K17: 4.7 | N17: 3.63 | O17: 5.63 | P17: =MAX(F17,H17,J17,L17,N17)-MIN(F17,H17,J17,L17,N17) -> 1.9 | Q17: =MAX(G17,I17,K17,M17,O17)-MIN(G17,I17,K17,M17,O17) -> 1.4 | R17: =AVERAGE(F17,H17,J17,L17,N17) -> 2.59 | S17: =AVERAGE(G17,I17,K17,M17,O17) -> 5.015
A18: 1 symbol | B18: 1x2 | C18: 1% of ACK missed detection | D18: =DerivingPerfReq(F18:O18) -> 0.3 | E18: 0.9 | F18: -2.3 | G18: 0.2 | H18: -2.5 | I18: 0.2 | J18: -2.4 | K18: 0.1 | N18: -1.31 | O18: 0.69 | P18: 1.19 | Q18: 0.59 | R18: -2.1275 | S18: 0.2975
A20: PUCCH format 2 (UCI BLER) | D20: 38.104 req | E20: 38.141 req | F20: CATT | H20: Ericsson | J20: Huawei | L20: Nokia | N20: Samsung | P20: SPAN | R20: AVERAGE
F21: Ideal | G21: Impairment | H21: Ideal | I21: Impairment | J21: Ideal | K21: Impairment | L21: Ideal | M21: Impairment | N21: Ideal | O21: Impairment | P21: Ideal | Q21: Impairment | R21: Ideal | S21: Impairment
A22: 1 symbol | B22: 1x1 | C22: 1% of UCI BLER | D22: =DerivingPerfReq(F22:O22) -> 4.2 | E22: =IF(D22>-100,D22+0.6,D22) -> 4.8 | F22: -0.2 | G22: 2.3 | H22: 1 | I22: 3.7 | J22: 2.6 | K22: 5.1 | N22: 1.88 | O22: 3.88 | P22: =MAX(F22,H22,J22,L22,N22)-MIN(F22,H22,J22,L22,N22) -> 2.8 | Q22: =MAX(G22,I22,K22,M22,O22)-MIN(G22,I22,K22,M22,O22) -> 2.8 | R22: =AVERAGE(F22,H22,J22,L22,N22) -> 1.32 | S22: =AVERAGE(G22,I22,K22,M22,O22) -> 3.745
A23: 1 symbol | B23: 1x2 | C23: 1% of UCI BLER | D23: =DerivingPerfReq(F23:O23) -> -1.6 | E23: -1 | F23: -4.7 | G23: -2.2 | H23: -4.6 | I23: -1.9 | J23: -3.5 | K23: -1 | N23: -3.35 | O23: -1.35 | P23: =MAX(F23,H23,J23,L23,N23)-MIN(F23,H23,J23,L23,N23) -> 1.35 | Q23: =MAX(G23,I23,K23,M23,O23)-MIN(G23,I23,K23,M23,O23) -> 1.2 | R23: =AVERAGE(F23,H23,J23,L23,N23) -> -4.0375 | S23: =AVERAGE(G23,I23,K23,M23,O23) -> -1.6125
A25: PUCCH format 3 | D25: 38.104 req | E25: 38.141 req | F25: CATT | H25: Ericsson | J25: Huawei | L25: Nokia | N25: Samsung | P25: SPAN | R25: AVERAGE
F26: Ideal | G26: Impairment | H26: Ideal | I26: Impairment | J26: Ideal | K26: Impairment | L26: Ideal | M26: Impairment | N26: Ideal | O26: Impairment | P26: Ideal | Q26: Impairment | R26: Ideal | S26: Impairment
A27: Additional DMRS | B27: 1x1 | C27: 1% of UCI BLER | D27: =DerivingPerfReq(F27:O27) -> 1.4 | E27: =IF(D27>-100,D27+0.6,D27) -> 2 | F27: -1.1 | G27: 1.4 | H27: -1.1 | I27: 1.6 | J27: 1.5 | K27: 4 | N27: -0.82 | O27: 1.18 | P27: =MAX(F27,H27,J27,L27,N27)-MIN(F27,H27,J27,L27,N27) -> 2.6 | Q27: =MAX(G27,I27,K27,M27,O27)-MIN(G27,I27,K27,M27,O27) -> 2.82 | R27: =AVERAGE(F27,H27,J27,L27,N27) -> -0.38 | S27: =AVERAGE(G27,I27,K27,M27,O27) -> 2.045
A28: Additional DMRS | B28: 1x2 | C28: 1% of UCI BLER | D28: -2.6 | E28: -2 | F28: -5 | G28: -2.5 | H28: -5.4 | I28: -2.7 | J28: -4.3 | K28: -1.8 | N28: -5.39 | O28: -3.39 | P28: =MAX(F28,H28,J28,L28,N28)-MIN(F28,H28,J28,L28,N28) -> 1.1 | Q28: =MAX(G28,I28,K28,M28,O28)-MIN(G28,I28,K28,M28,O28) -> 1.59 | R28: =AVERAGE(F28,H28,J28,L28,N28) -> -5.0225 | S28: =AVERAGE(G28,I28,K28,M28,O28) -> -2.5975
A29: No additional DMRS | B29: 1x1 | C29: 1% of UCI BLER | D29: 1.9 | E29: 2.5 | F29: 0.4 | G29: 2.9 | H29: -0.9 | I29: 1.8 | J29: 1.6 | K29: 4.1 | N29: -0.93 | O29: 1.07 | P29: 2.53 | Q29: 3.03 | R29: 0.0425 | S29: 2.4675
A30: No additional DMRS | B30: 1x2 | C30: 1% of UCI BLER | D30: -2 | E30: -1.4 | F30: -4.1 | G30: -1.6 | H30: -4.5 | I30: -1.8 | J30: -3.9 | K30: -1.4 | N30: -5.01 | O30: -3.01 | P30: 1.11 | Q30: 1.61 | R30: -4.3775 | S30: -1.9525
A32: PUCCH format 4 | D32: 38.104 req | E32: 38.141 req | F32: CATT | H32: Ericsson | J32: Huawei | L32: Nokia | N32: Samsung | P32: SPAN | R32: AVERAGE
F33: Ideal | G33: Impairment | H33: Ideal | I33: Impairment | J33: Ideal | K33: Impairment | L33: Ideal | M33: Impairment | N33: Ideal | O33: Impairment | P33: Ideal | Q33: Impairment | R33: Ideal | S33: Impairment
A34: Additional DMRS | B34: 1x1 | C34: 1% of UCI BLER | D34: =DerivingPerfReq(F34:O34) -> -103 | E34: =IF(D34>-100,D34+0.6,D34) -> -103 | F34: 0.7 | G34: 3.2 | H34: -1 | I34: 1.7 | J34: 4 | K34: 6.5 | N34: 2.17 | O34: 4.17 | P34: =MAX(F34,H34,J34,L34,N34)-MIN(F34,H34,J34,L34,N34) -> 5 | Q34: =MAX(G34,I34,K34,M34,O34)-MIN(G34,I34,K34,M34,O34) -> 4.8 | R34: =AVERAGE(F34,H34,J34,L34,N34) -> 1.4675 | S34: =AVERAGE(G34,I34,K34,M34,O34) -> 3.8925
A35: Additional DMRS | B35: 1x2 | C35: 1% of UCI BLER | D35: =DerivingPerfReq(F35:O35) -> -0.7 | E35: -0.1 | F35: -3.9 | G35: -1.4 | H35: -5.2 | I35: -2.5 | J35: -2.2 | K35: 0.3 | N35: -3.04 | O35: -1.04 | P35: =MAX(F35,H35,J35,L35,N35)-MIN(F35,H35,J35,L35,N35) -> 3 | Q35: =MAX(G35,I35,K35,M35,O35)-MIN(G35,I35,K35,M35,O35) -> 2.8 | R35: =AVERAGE(F35,H35,J35,L35,N35) -> -3.585 | S35: =AVERAGE(G35,I35,K35,M35,O35) -> -1.16
A36: No additional DMRS | B36: 1x1 | C36: 1% of UCI BLER | D36: =DerivingPerfReq(F36:O36) -> -103 | E36: -103 | F36: 1.3 | G36: 3.8 | H36: -0.6 | I36: 2.1 | J36: 4.1 | K36: 6.6 | N36: 1.91 | O36: 3.91 | P36: 4.7 | Q36: 4.5 | R36: 1.6775 | S36: 4.1025
A37: No additional DMRS | B37: 1x2 | C37: 1% of UCI BLER | D37: =DerivingPerfReq(F37:O37) -> -0.2 | E37: 0.4 | F37: -2.7 | G37: -0.2 | H37: -4.4 | I37: -1.7 | J37: -2 | K37: 0.5 | N37: -2.88 | O37: -0.88 | P37: 2.4 | Q37: 2.2 | R37: -2.995 | S37: -0.57

Sheet Above 10GHz bands - PRACH
A1: PRACH | C1: 38.104 req | D1: 38.141 req | E1: CATT | G1: Ericsson | I1: Huawei | K1: Nokia | M1: Samsung | O1: SPAN | Q1: AVERAGE
E2: Ideal | F2: Impairment | G2: Ideal | H2: Impairment | I2: Ideal | J2: Impairment | K2: Ideal | L2: Impairment | M2: Ideal | N2: Impairment | O2: Ideal | P2: Impairment | Q2: Ideal | R2: Impairment
A3: B4 | B3: 1x1 | C3: =DerivingPerfReq(E3:N3) -> -6.3 | D3: =IF(C3>-100,C3+0.6,C3) -> -5.7 | E3: -10.3 | F3: -7.8 | G3: -8 | H3: -5.3 | I3: -8.1 | J3: -5.6 | M3: -9.94 | N3: -7.94 | O3: =MAX(E3,G3,I3,K3,M3)-MIN(E3,G3,I3,K3,M3) -> 2.3 | P3: =MAX(F3,H3,J3,L3,N3)-MIN(F3,H3,J3,L3,N3) -> 2.64 | Q3: =AVERAGE(E3,G3,I3,K3,M3) -> -9.085 | R3: =AVERAGE(F3,H3,J3,L3,N3) -> -6.66
A4: B4 | B4: 1x2 | C4: =DerivingPerfReq(E4:N4) -> -11.9 | D4: -11.3 | E4: -14.6 | F4: -12.1 | G4: -13.9 | H4: -11.2 | I4: -13.5 | J4: -11 | M4: -15.38 | N4: -13.38 | O4: =MAX(E4,G4,I4,K4,M4)-MIN(E4,G4,I4,K4,M4) -> 1.88 | P4: 2.38 | Q4: =AVERAGE(E4,G4,I4,K4,M4) -> -14.345 | R4: -11.92
A5: C2 | B5: 1x1 | C5: =DerivingPerfReq(E5:N5) -> -3.3 | D5: -2.7 | E5: -6.7 | F5: -4.2 | G5: -6 | H5: -3.3 | I5: -4.8 | J5: -2.3 | M5: -5.53 | N5: -3.53 | O5: 1.9 | P5: 1.9 | Q5: -5.7575 | R5: -3.3325
A6: C2 | B6: 1x2 | C6: =DerivingPerfReq(E6:N6) -> -8.6 | D6: -8 | E6: -11.5 | F6: -9 | G6: -11.3 | H6: -8.6 | I6: -10.3 | J6: -7.8 | M6: -11.04 | N6: -9.04 | O6: 1.2 | P6: 1.24 | Q6: -11.035 | R6: -8.61

Sheet PUSCH with DMRS bundling
A1: Normal PUSCH with CP-OFDM | E1: 38.104 req | F1: 38.141 req | G1: CATT | I1: Ericsson | K1: Huawei | M1: Nokia | O1: Samsung | Q1: SPAN | S1: AVERAGE
G2: Ideal | H2: Impairment | I2: Ideal | J2: Impairment | K2: Ideal | L2: Impairment | M2: Ideal | N2: Impairment | O2: Ideal | P2: Impairment | Q2: Ideal | R2: Impairment | S2: Ideal | T2: Impairment
A3: 15kHz, 5MHz | B3: PUSCH mapping type A | C3: n4 | D3: 1x1 | E3: =DerivingPerfReq(G3:P3) -> -103 | F3: =IF(E3>-100,E3+0.6,E3) -> -103 | I3: -3.74 | J3: -1.44 | K3: -5.5 | L3: -3 | O3: -2.6 | P3: -0.6 | Q3: =MAX(G3,I3,K3,M3,O3)-MIN(G3,I3,K3,M3,O3) -> 2.9 | R3: 2.4 | S3: =AVERAGE(G3,I3,K3,M3,O3) -> -3.946666667 | T3: -1.68
A4: 15kHz, 5MHz | B4: PUSCH mapping type A | C4: n4 | D4: 1x2 | E4: =DerivingPerfReq(G4:P4) -> -103 | F4: -103 | I4: -7.09 | J4: -4.79 | K4: -8.9 | L4: -6.4 | O4: -6.6 | P4: -4.6 | Q4: 2.3 | R4: 1.8 | S4: -7.53 | T4: -5.263333333
A5: 15kHz, 5MHz | B5: PUSCH mapping type B | C5: n4 | D5: 1x1 | E5: -103 | F5: =IF(E5>-100,E5+0.6,E5) -> -103 | I5: -3.77 | J5: -1.47 | K5: -5.5 | L5: -3 | O5: -2.1 | P5: -0.1 | Q5: 3.4 | R5: 2.9 | S5: -3.79 | T5: -1.523333333
A6: 15kHz, 5MHz | B6: PUSCH mapping type B | C6: n4 | D6: 1x2 | E6: -103 | F6: -103 | I6: -7.1 | J6: -4.8 | K6: -8.9 | L6: -6.4 | O6: -6.2 | P6: -4.2 | Q6: =MAX(G6,I6,K6,M6,O6)-MIN(G6,I6,K6,M6,O6) -> 2.7 | R6: =MAX(H6,J6,L6,N6,P6)-MIN(H6,J6,L6,N6,P6) -> 2.2 | S6: =AVERAGE(G6,I6,K6,M6,O6) -> -7.4 | T6: =AVERAGE(H6,J6,L6,N6,P6) -> -5.133333333
A7: 30kHz, 10MHz | B7: PUSCH mapping type A | C7: n8 | D7: 1x1 | E7: -103 | F7: -103 | I7: -6.41 | J7: -4.11 | K7: -8.8 | L7: -6.3 | O7: -5.6 | P7: -3.6 | Q7: =MAX(G7,I7,K7,M7,O7)-MIN(G7,I7,K7,M7,O7) -> 3.2 | R7: 2.7 | S7: =AVERAGE(G7,I7,K7,M7,O7) -> -6.936666667 | T7: -4.67
A8: 30kHz, 10MHz | B8: PUSCH mapping type A | C8: n8 | D8: 1x2 | E8: -103 | F8: -103 | I8: -9.35 | J8: -7.05 | K8: -12 | L8: -9.5 | O8: -9.2 | P8: -7.2 | Q8: 2.8 | R8: 2.45 | S8: -10.18333333 | T8: -7.916666667
A9: 30kHz, 10MHz | B9: PUSCH mapping type B | C9: n8 | D9: 1x1 | E9: -103 | F9: -103 | I9: -6.4 | J9: -4.1 | K9: -8.8 | L9: -6.3 | O9: -5.3 | P9: -3.3 | Q9: =MAX(G9,I9,K9,M9,O9)-MIN(G9,I9,K9,M9,O9) -> 3.5 | R9: =MAX(H9,J9,L9,N9,P9)-MIN(H9,J9,L9,N9,P9) -> 3 | S9: =AVERAGE(G9,I9,K9,M9,O9) -> -6.833333333 | T9: =AVERAGE(H9,J9,L9,N9,P9) -> -4.566666667
A10: 30kHz, 10MHz | B10: PUSCH mapping type B | C10: n8 | D10: 1x2 | E10: -103 | F10: -103 | I10: -9.34 | J10: -7.04 | K10: -12 | L10: -9.5 | O10: -9 | P10: -7 | Q10: 3 | R10: 2.5 | S10: -10.11333333 | T10: -7.846666667
